fUSD/lending_fUSD_20250620
["ID","MTS","AMOUNT","RATE_DAILY","PERIOD"]
[366718507,1750415715865,-2379.67460886,0.00038575,30]
[366718508,1750415715874,-572.02729184,0.00038575,30]
[366718509,1750415715884,-506.15539507,0.00038575,120]
[366718510,1750415715894,-1495.10791811,0.00038575,30]
[366718511,1750415715903,-206.67891547,0.00038575,120]
[366718512,1750415715913,-161.08695167,0.00038575,120]
[366718513,1750415715922,-2246.7759319,0.00038575,30]
[366718514,1750415715931,-1017.05727422,0.00038575,120]
[366718515,1750415715941,-366.13203603,0.00038575,120]
[366718516,1750415715951,-2076.27018191,0.00038575,30]
[366718517,1750415715960,-267.77332152,0.00038575,30]
[366718518,1750415715970,-543.95953315,0.00038575,120]
[366718519,1750415715980,-257.07223188,0.00038575,120]
[366718520,1750415715990,-453.45328646,0.00038575,60]
[366718521,1750415715999,-344.33484064,0.00038575,120]
[366718522,1750415716010,-207.61930243,0.00038575,30]
[366718523,1750415716019,-1984.08830792,0.00038575,30]
[366718524,1750415716029,-2511.25813686,0.00038575,30]
[366718525,1750415716039,-3503.77021178,0.00038575,30]
[366718526,1750415716048,-500.0,0.00038575,30]
[366718527,1750415716057,-2093.51828883,0.00038575,30]
[366718528,1750415716067,-2999.999999,0.00038575,30]
[366718529,1750415716076,-946.94101837,0.00038575,60]
[366718530,1750415716086,-478.0,0.00038575,14]
[366718531,1750415716096,-100293.19209184,0.00038575,55]
[366718532,1750415716105,-14595.79696727,0.00038575,30]
[366718533,1750415716115,-788825.96746067,0.00038575,30]
[366718534,1750415716127,-54416.21532956,0.00038575,30]
[366718535,1750415716139,-138126.64354298,0.00038575,15]
[366718536,1750415716148,-855.77622062,0.00038575,120]
[366718537,1750415716158,-10198.25306691,0.00038575,30]
[366718538,1750415716168,-8997.94635439,0.00038575,30]
[366718539,1750415716179,-7500.000002,0.00038575,30]
[366718540,1750415716188,-1987198.3751419,0.00038575,30]
[366718541,1750415716197,-502756.81454812,0.00038575,30]
[366718542,1750415716207,-3000.0,0.00038575,120]
[366718543,1750415716217,-284.85,0.00038575,120]
[366718544,1750415716227,-490.0,0.00038575,120]
[366718545,1750415716236,-176.71538139,0.00038575,120]
[366718546,1750415716246,-77258.69203734,0.00038575,120]
[366718547,1750415716256,-1098.19876226,0.00038575,120]
[366718548,1750415716266,-1684.57052625,0.00038575,120]
[366718549,1750415716279,-259.0,0.00038575,60]
[366718550,1750415716289,-385.13778262,0.00038575,30]
[366718551,1750415716299,-24035.62346338,0.00038575,30]
[366718552,1750415716310,-25043.2016566,0.00038575,120]
[366718553,1750415716320,-1000.0,0.00038575,120]
[366718554,1750415716331,-558.00000001,0.00038575,120]
[366718555,1750415716341,-104252.18652894,0.00038575,60]
[366718556,1750415716352,-384.75761163,0.00038575,120]
[366718557,1750415716362,-320.48764167,0.00038575,30]
[366718558,1750415716373,-300.0,0.00038575,30]
[366718559,1750415716383,-300.0,0.00038575,30]
[366718560,1750415716393,-300.0,0.00038575,30]
[366718561,1750415716403,-400.0,0.00038575,30]
[366718562,1750415716413,-400.0,0.00038575,30]
[366718563,1750415716423,-428.67302449,0.00038575,120]
[366718564,1750415716434,-1594.0,0.00038575,30]
[366718565,1750415716444,-70000.0,0.00038575,90]
[366718566,1750415716454,-199.999999,0.00038575,120]
[366718567,1750415716463,-651.40660415,0.00038575,120]
[366718568,1750415716473,-4737.854082,0.00038575,120]
[366718569,1750415716483,-40000.0,0.00038575,120]
[366718570,1750415716492,-896.691248,0.00038575,120]
[366718571,1750415716501,-5726.67134778,0.00038575,2]
[366718572,1750415716511,-152.53922207,0.00038575,120]
[366718573,1750415716522,-2274.432453,0.00038575,30]
[366718574,1750415716531,-40000.0,0.00038575,10]
[366718575,1750415716541,-3091.0,0.00038575,120]
[366718576,1750415716550,-50000.0,0.00038575,30]
[366718577,1750415716561,-50000.0,0.00038575,31]
[366718578,1750415716570,-50000.0,0.00038575,32]
[366718579,1750415716579,-50000.0,0.00038575,33]
[366718580,1750415716589,-50000.0,0.00038575,34]
[366718581,1750415716599,-50000.0,0.00038575,35]
[366718582,1750415716609,-50000.0,0.00038575,36]
[366718583,1750415716619,-50000.0,0.00038575,37]
[366718584,1750415716628,-50000.0,0.00038575,38]
[366718585,1750415716638,-50000.0,0.00038575,39]
[366718586,1750415716648,-2135.51961861,0.00038575,60]
[366718587,1750415716658,-10383.50141,0.00038575,60]
[366718588,1750415716668,-951.7007237,0.00038575,120]
[366718589,1750415716678,-1326.21021601,0.00038575,60]
[366718590,1750415716688,-1831.38591413,0.00038575,120]
[366718591,1750415716698,-1547.16246414,0.00038575,120]
[366718592,1750415716707,-1183.88058546,0.00038575,120]
[366718593,1750415716716,-1178.16140215,0.00038575,120]
[366718594,1750415716726,-3138.76996929,0.00038575,7]
[366718595,1750415716735,-1501.84299349,0.00038575,120]
[366718596,1750415716745,-1463.34395304,0.00038575,120]
[366718597,1750415716755,-2415.28555648,0.00038575,120]
[366718598,1750415716765,-1128.7576568,0.00038575,120]
[366718599,1750415716774,-2143.27082788,0.00038575,120]
[366718600,1750415716784,-2142.86890036,0.00038575,120]
[366718601,1750415716794,-1156.53746102,0.00038575,120]
[366718602,1750415716803,-6783.71293278,0.00038575,120]
[366718603,1750415716814,-37178.95,0.00038575,60]
[366718604,1750415716824,-6018.0,0.00038575,14]
[366718605,1750415716835,-402.24344807,0.00038575,120]
[366718606,1750415716846,-2112.81056393,0.00038575,10]
[366718607,1750415716855,-38971.8851484,0.00038575,30]
[366718608,1750415716865,-1720.64273501,0.00038575,60]
[366718609,1750415716874,-5999.999985,0.00038575,120]
[366718610,1750415716884,-5565.61930968,0.00038575,120]
[366718611,1750415716894,-2277.14685837,0.00038575,120]
[366718612,1750415716904,-1414.77071869,0.00038575,120]
[366718613,1750415716914,-1364.1100059,0.00038575,90]
[366718614,1750415716924,-1457.27143113,0.00038575,60]
[366718615,1750415716934,-3296.78697373,0.00038575,120]
[366718616,1750415716944,-1908.72968227,0.00038575,120]
[366718617,1750415716954,-1033.11519742,0.00038575,60]
[366718618,1750415716964,-2091.38607132,0.00038575,120]
[366718619,1750415716974,-393.90499834,0.00038575,120]
[366718620,1750415716984,-647.98655539,0.00038575,120]
[366718621,1750415716994,-3348.74059384,0.00038575,120]
[366718622,1750415717005,-3434.54232171,0.00038575,120]
[366718623,1750415717015,-2459.52254948,0.00038575,120]
[366718624,1750415717025,-572.09610067,0.00038575,120]
[366718625,1750415717035,-1318.55789194,0.00038575,120]
[366718626,1750415717045,-849.55580652,0.00038575,120]
[366718627,1750415717054,-907.28338344,0.00038575,120]
[366718628,1750415717064,-34888.38803039,0.00038575,120]
[366718629,1750415717075,-3113.20073269,0.00038575,120]
[366718630,1750415717085,-1759.59176117,0.00038575,120]
[366718631,1750415717096,-2617.96500316,0.00038575,120]
[366718632,1750415717105,-949.71940333,0.00038575,120]
[366718633,1750415717115,-16612.39891136,0.00038575,120]
[366718634,1750415717125,-158.4048991,0.00038575,120]
[366718635,1750415717135,-983.77980559,0.00038575,120]
[366718636,1750415717146,-3832.71853324,0.00038575,120]
[366718637,1750415717157,-12550.31345771,0.00038575,120]
[366718638,1750415717168,-209.6,0.00038575,30]
[366718639,1750415717177,-209.6,0.00038575,30]
[366718640,1750415717187,-10000.0,0.00038575,52]
[366718641,1750415717197,-5000.0,0.00038575,30]
[366718642,1750415717207,-5000.0,0.00038575,35]
[366718643,1750415717217,-13440.79179975,0.00038575,30]
[366718644,1750415717227,-1292.0,0.00038575,60]
[366718645,1750415717237,-1292.0,0.00038575,60]
[366718646,1750415717246,-1292.0,0.00038575,60]
[366718647,1750415717256,-1292.0,0.00038575,60]
[366718648,1750415717266,-331.0,0.00038575,60]
[366718649,1750415717280,-331.0,0.00038575,60]
[366718650,1750415717289,-331.0,0.00038575,60]
[366718651,1750415717299,-331.0,0.00038575,60]
[366718652,1750415717309,-1986.0,0.00038575,60]
[366718653,1750415717319,-1986.0,0.00038575,60]
[366718654,1750415717329,-1986.0,0.00038575,60]
[366718655,1750415717339,-1986.0,0.00038575,60]
[366718656,1750415717348,-1986.0,0.00038575,60]
[366718657,1750415717358,-1987.0,0.00038575,60]
[366718658,1750415717368,-1986.0,0.00038575,60]
[366718659,1750415717378,-1986.0,0.00038575,60]
[366718660,1750415717396,-1986.0,0.00038575,60]
[366718661,1750415717408,-1986.0,0.00038575,60]
[366718662,1750415717418,-1986.0,0.00038575,60]
[366718663,1750415717428,-1986.0,0.00038575,60]
[366718664,1750415717438,-1986.0,0.00038575,60]
[366718665,1750415717448,-331.0,0.00038575,60]
[366718666,1750415717458,-331.0,0.00038575,60]
[366718667,1750415717467,-331.0,0.00038575,60]
[366718668,1750415717477,-331.0,0.00038575,60]
[366718669,1750415717487,-331.0,0.00038575,60]
[366718670,1750415717497,-331.0,0.00038575,60]
[366718671,1750415717507,-1986.0,0.00038575,60]
[366718672,1750415717517,-1986.0,0.00038575,60]
[366718673,1750415717527,-331.0,0.00038575,60]
[366718674,1750415717537,-331.0,0.00038575,60]
[366718675,1750415717547,-331.0,0.00038575,60]
[366718676,1750415717557,-315.0,0.00038575,60]
[366718677,1750415717567,-316.0,0.00038575,60]
[366718678,1750415717578,-315.0,0.00038575,60]
[366718679,1750415717587,-150.0,0.00038575,60]
[366718680,1750415717597,-1292.0,0.00038575,60]
[366718681,1750415717607,-1295.0,0.00038575,60]
[366718682,1750415717618,-341.0,0.00038575,60]
[366718683,1750415717628,-341.0,0.00038575,60]
[366718684,1750415717638,-342.0,0.00038575,60]
[366718685,1750415717648,-341.0,0.00038575,60]
[366718686,1750415717659,-15000.0,0.00038575,120]
[366718687,1750415717669,-1154.507672,0.00038575,90]
[366718688,1750415717678,-331.0,0.00038575,60]
[366718689,1750415717688,-332.0,0.00038575,60]
[366718690,1750415717698,-331.0,0.00038575,60]
[366718691,1750415717708,-1986.0,0.00038575,60]
[366718692,1750415717718,-1986.0,0.00038575,60]
[366718693,1750415717727,-331.0,0.00038575,60]
[366718694,1750415717738,-331.0,0.00038575,60]
[366718695,1750415717747,-5000.0,0.00038575,120]
[366718696,1750415717758,-500.0,0.00038575,120]
[366718697,1750415717768,-2410.567533,0.00038575,120]
[366718698,1750415717778,-1200.06223579,0.00038575,30]
[366718699,1750415717788,-1351.0,0.00038575,120]
[366718700,1750415717797,-192.0,0.00038575,120]
[366718701,1750415717807,-1400.0,0.00038575,120]
[366718702,1750415717817,-14737.10425435,0.00038575,120]
[366718703,1750415717835,-8014.0349954,0.00038575,120]
[366718704,1750415717846,-1536.46477245,0.00038575,30]
[366718705,1750415717856,-1241.26034179,0.00038575,45]
[366718706,1750415717866,-333821.0,0.00038575,60]
[366718707,1750415717876,-745.0,0.00038575,60]
[366718708,1750415717886,-571.0,0.00038575,60]
[366718709,1750415717896,-575.0,0.00038575,60]
[366718710,1750415717907,-571.0,0.00038575,60]
[366718711,1750415717917,-571.0,0.00038575,60]
[366718712,1750415717927,-571.0,0.00038575,60]
[366718713,1750415717937,-2856.0,0.00038575,60]
[366718714,1750415717948,-522.0,0.00038575,60]
[366718715,1750415717958,-522.0,0.00038575,60]
[366718716,1750415717968,-522.0,0.00038575,60]
[366718717,1750415717978,-522.0,0.00038575,60]
[366718718,1750415717988,-522.0,0.00038575,60]
[366718719,1750415717998,-435.0,0.00038575,60]
[366718720,1750415718008,-434.0,0.00038575,60]
[366718721,1750415718017,-522.0,0.00038575,60]
[366718722,1750415718028,-549.0,0.00038575,60]
[366718723,1750415718038,-437.0,0.00038575,60]
[366718724,1750415718049,-436.0,0.00038575,60]
[366718725,1750415718060,-434.0,0.00038575,60]
[366718726,1750415718070,-435.0,0.00038575,60]
[366718727,1750415718080,-434.0,0.00038575,60]
[366718728,1750415718090,-571.0,0.00038575,60]
[366718729,1750415718099,-337.0,0.00038575,60]
[366718730,1750415718109,-335.0,0.00038575,60]
[366718731,1750415718119,-571.0,0.00038575,60]
[366718732,1750415718129,-571.0,0.00038575,60]
[366718733,1750415718139,-571.0,0.00038575,60]
[366718734,1750415718149,-571.0,0.00038575,60]
[366718735,1750415718159,-315.0,0.00038575,60]
[366718736,1750415718170,-315.0,0.00038575,60]
[366718737,1750415718180,-443.0,0.00038575,60]
[366718738,1750415718190,-443.0,0.00038575,60]
[366718739,1750415718201,-571.0,0.00038575,60]
[366718740,1750415718211,-2856.0,0.00038575,60]
[366718741,1750415718222,-373.0,0.00038575,60]
[366718742,1750415718233,-372.0,0.00038575,60]
[366718743,1750415718243,-275.0,0.00038575,120]
[366718744,1750415718253,-1000.0,0.00038575,120]
[366718745,1750415718263,-904.38839891,0.00038575,120]
[366718746,1750415718283,-1527681.0,0.00038575,90]
[366718747,1750415718293,-394.0,0.00038575,60]
[366718748,1750415718303,-329.0,0.00038575,60]
[366718749,1750415718313,-329.0,0.00038575,60]
[366718750,1750415718323,-329.0,0.00038575,60]
[366718751,1750415718333,-329.0,0.00038575,60]
[366718752,1750415718343,-360.0,0.00038575,60]
[366718753,1750415718353,-360.0,0.00038575,60]
[366718754,1750415718363,-4369.50695569,0.00038575,60]
[366718755,1750415718373,-360.0,0.00038575,60]
[366718756,1750415718383,-308.0288805,0.00038575,30]
[366718757,1750415718393,-3651.0,0.00038575,120]
[366718758,1750415718404,-2473.0,0.00038575,120]
[366718759,1750415718415,-10012.61304586,0.00038575,30]
[366718760,1750415718426,-877.9,0.00038575,120]
[366718761,1750415718435,-37485.75,0.00038575,60]
[366718762,1750415718446,-6523.60071833,0.00038575,120]
[366718763,1750415718456,-476.68725,0.00038575,120]
[366718764,1750415718466,-10449.4633654,0.00038575,60]
[366718765,1750415718476,-5000.0,0.00038575,36]
[366718766,1750415718486,-209.6,0.00038575,30]
[366718767,1750415718497,-193.87351931,0.00038575,7]
[366718768,1750415718508,-500.0,0.00038575,120]
[366718769,1750415718518,-1000.0,0.00038575,120]
[366718770,1750415718528,-2000.0,0.00038575,120]
[366718771,1750415718539,-3000.0,0.00038575,120]
[366718772,1750415718549,-1007.00042098,0.00038575,120]
[366718773,1750415718559,-7724.96200651,0.00038575,120]
[366718774,1750415718569,-3318.17983043,0.00038575,120]
[366718775,1750415718579,-1079.0,0.00038575,30]
[366718776,1750415718591,-1079.0,0.00038575,30]
[366718777,1750415718601,-1079.0,0.00038575,30]
[366718778,1750415718611,-1079.0,0.00038575,30]
[366718779,1750415718622,-1079.0,0.00038575,30]
[366718780,1750415718632,-78567.76903103,0.00038575,30]
[366718781,1750415718642,-10735.26177144,0.00038575,30]
[366718782,1750415718653,-563404.7716103,0.00038575,30]
[366718783,1750415718663,-900675.49537946,0.00038575,30]
[366718784,1750415719380,-288.07999384,0.00025743,4]
[366718785,1750415719393,-1510.50000616,0.00025743,4]
[366718786,1750415719404,-650.93,0.00025753,4]
[366718787,1750415719414,-490.0,0.00028229,4]
[366718788,1750415719424,-75864.32506215,0.00038582,30]
[366718789,1750415719435,-269921.43988796,0.00038582,30]
[366718790,1750415719447,-500.0,0.00038582,30]
[366718791,1750415719459,-6183.54723108,0.00038582,30]
[366718792,1750415719470,-2451.3649834,0.00038582,30]
[366718793,1750415719482,-13950.0,0.00038582,30]
[366718794,1750415719494,-2409.33409,0.00038582,30]
[366718795,1750415719658,-106.68827884,0.00038582,30]
[366718796,1750415720016,-1282.0,0.00028187,4]
[366718797,1750415720045,-490.0,0.00025731,4]
[366718798,1750415720056,-1310.9,0.00027935,4]
[366718799,1750415720066,-192.28,0.00028187,4]
[366718800,1750415720076,-511.43,0.00029041,4]
[366718801,1750415720086,-490.0,0.00029863,4]
[366718802,1750415720096,-100.25716903,0.00030127,4]
[366718803,1750415720803,-298.67000001,0.00025447,4]
[366718804,1750415720815,-191.32999999,0.00025447,4]
[366718805,1750415720825,-222.36196567,0.00025447,4]
[366718806,1750415720838,-766.99,0.00025447,4]
[366718807,1750415720850,-117.13803433,0.00025447,4]
[366718808,1750415720860,-825.14,0.00025457,4]
[366718809,1750415720871,-490.0,0.00025469,4]
[366718810,1750415720880,-490.0,0.00025721,4]
[366718811,1750415720890,-75.19955755,0.00025721,4]
[366718812,1750415720902,-1031.29044245,0.00025721,4]
[366718813,1750415720912,-825.14,0.00025731,4]
[366718814,1750415720923,-490.0,0.00025743,4]
[366718815,1750415720934,-490.0,0.00025995,4]
[366718816,1750415720944,-1106.49,0.00025995,4]
[366718817,1750415720955,-490.0,0.00026005,4]
[366718818,1750415720965,-825.14,0.00026005,4]
[366718819,1750415720976,-1798.58,0.00026017,4]
[366718820,1750415720987,-490.0,0.00026017,4]
[366718821,1750415720999,-650.93,0.00026027,4]
[366718822,1750415721010,-490.0,0.00026269,4]
[366718823,1750415721020,-1106.49,0.00026269,4]
[366718824,1750415721030,-490.0,0.00026279,4]
[366718825,1750415721040,-825.14,0.00026279,4]
[366718826,1750415721050,-1798.58,0.00026291,4]
[366718827,1750415721060,-201.45,0.00026291,4]
[366718828,1750415721071,-650.93,0.00026301,4]
[366718829,1750415721082,-490.0,0.00026543,4]
[366718830,1750415721092,-1106.49,0.00026543,4]
[366718831,1750415721103,-490.0,0.00026553,4]
[366718832,1750415721114,-825.14,0.00026553,4]
[366718833,1750415721126,-1798.58,0.00026565,4]
[366718834,1750415721138,-650.93,0.00026575,4]
[366718835,1750415721150,-490.0,0.00026817,4]
[366718836,1750415721160,-1106.49,0.00026817,4]
[366718837,1750415721170,-490.0,0.00026827,4]
[366718838,1750415721180,-1798.58,0.00026839,4]
[366718839,1750415721190,-650.93,0.00026849,4]
[366718840,1750415721202,-490.0,0.00027091,4]
[366718841,1750415721212,-1106.49,0.00027091,4]
[366718842,1750415721223,-533.52175902,0.00027101,4]
[366718843,1750415721234,-1798.58,0.00027113,4]
[366718844,1750415721245,-650.93,0.00027123,4]
[366718845,1750415721256,-490.0,0.00027365,4]
[366718846,1750415721267,-1106.49,0.00027365,4]
[366718847,1750415721282,-1798.58,0.00027387,4]
[366718848,1750415721293,-650.93,0.00027397,4]
[366718849,1750415721305,-1106.49,0.00027639,4]
[366718850,1750415721315,-490.0,0.00027639,4]
[366718851,1750415721327,-1798.58,0.00027661,4]
[366718852,1750415721338,-650.93,0.00027671,4]
[366718853,1750415721350,-1106.49,0.00027913,4]
[366718854,1750415721360,-1798.58,0.00027935,4]
[366718855,1750415721372,-650.93,0.00027945,4]
[366718856,1750415721382,-500.0,0.00028181,2]
[366718857,1750415721393,-500.0,0.00028181,2]
[366718858,1750415721403,-500.0,0.00028181,2]
[366718859,1750415721415,-500.0,0.00028181,2]
[366718860,1750415721425,-500.0,0.00028181,2]
[366718861,1750415721435,-500.0,0.00028181,2]
[366718862,1750415721444,-1310.9,0.00028209,4]
[366718863,1750415721454,-1798.58,0.00028209,4]
[366718864,1750415721465,-650.93,0.00028219,4]
[366718865,1750415721475,-1474.28,0.00028461,4]
[366718866,1750415721485,-1310.9,0.00028483,4]
[366718867,1750415721495,-650.93,0.00028493,4]
[366718868,1750415721506,-490.0,0.00028503,4]
[366718869,1750415721527,-1310.9,0.00028757,4]
[366718870,1750415721538,-490.0,0.00028777,4]
[366718871,1750415721549,-1310.9,0.00029031,4]
[366718872,1750415721561,-490.0,0.00029051,4]
[366718873,1750415721571,-1310.9,0.00029305,4]
[366718874,1750415721581,-511.43,0.00029315,4]
[366718875,1750415721591,-1310.9,0.00029579,4]
[366718876,1750415721603,-511.43,0.00029589,4]
[366718877,1750415721614,-1310.9,0.00029853,4]
[366718878,1750415721626,-511.43,0.00029863,4]
[366718879,1750415721638,-1953.88283097,0.00030127,4]
[366718880,1750415721649,-1310.9,0.00030127,4]
[366718881,1750415721660,-499.79014423,0.00030137,4]
[366718882,1750415721670,-511.43,0.00030137,4]
[366718883,1750415721681,-2054.14,0.00030401,4]
[366718884,1750415721692,-1310.9,0.00030401,4]
[366718885,1750415721702,-511.43,0.00030411,4]
[366718886,1750415721714,-2054.14,0.00030675,4]
[366718887,1750415721723,-1310.9,0.00030675,4]
[366718888,1750415721734,-511.43,0.00030685,4]
[366718889,1750415721745,-2054.14,0.00030949,4]
[366718890,1750415721756,-511.43,0.00030959,4]
[366718891,1750415721766,-2054.14,0.00031223,4]
[366718892,1750415721778,-511.43,0.00031233,4]
[366718893,1750415721789,-2054.14,0.00031497,4]
[366718894,1750415721799,-511.43,0.00031507,4]
[366718895,1750415721809,-2054.36811008,0.00031771,4]
[366718896,1750415721819,-511.47569855,0.00031781,4]
[366718897,1750415721828,-946.0,0.00037523,2]
[366718898,1750415721838,-3334.0,0.00037523,2]
[366718899,1750415721848,-205854.53926682,0.00038582,30]
[366718900,1750415725819,-151.0,0.00025489,7]
[366718901,1750415725846,-151.0,0.00025598,7]
[366718902,1750415727490,212.0,0.00022801,2]
[366718903,1750415731022,258.691696,0.00025489,7]
[366718904,1750415734672,-263.102214,0.00025609,7]
[366718905,1750415734695,-834.11677829,0.00025609,7]
[366718906,1750415734717,-263.102214,0.00025609,7]
[366718907,1750415734744,-151.0,0.00025753,7]
[366718908,1750415734767,-151.0,0.00025753,7]
[366718909,1750415734789,-263.102214,0.00025753,7]
[366718910,1750415734811,-263.102214,0.00025753,7]
[366718911,1750415734835,-151.0,0.00025763,7]
[366718912,1750415734857,-263.102214,0.00025763,7]
[366718913,1750415734879,-263.102214,0.00025763,7]
[366718914,1750415734902,-263.102214,0.00025764,7]
[366718915,1750415734924,-263.102214,0.00025764,7]
[366718916,1750415739112,151.0,0.00025607,7]
[366718917,1750415739293,151.0,0.00025753,7]
[366718918,1750415739402,151.0,0.00025753,7]
[366718919,1750415739527,151.0,0.00025763,7]
[366718920,1750415740501,151.0,0.00025607,7]
[366718921,1750415740589,151.0,0.00025753,7]
[366718922,1750415740701,192.956085,0.00025753,7]
[366718923,1750415741089,265.214852,0.00025609,7]
[366718924,1750415741198,265.214852,0.00025753,7]
[366718925,1750415741623,265.214852,0.00025763,7]
[366718926,1750415741759,265.214852,0.00025764,7]
[366718927,1750415742433,265.214852,0.00025609,7]
[366718928,1750415742578,265.214852,0.00025753,7]
[366718929,1750415742655,265.214852,0.00025763,7]
[366718930,1750415742716,265.214852,0.00025764,7]
[366718931,1750415744656,922.567076,0.00025489,7]
[366718932,1750415744815,340.45111,0.00025562,7]
[366718933,1750415744896,922.567076,0.0002549,7]
[366718934,1750415744992,922.567076,0.00025753,7]
[366718935,1750415745021,340.45111,0.00025753,7]
[366718936,1750415745095,922.567076,0.00025753,7]
[366718937,1750415745168,922.567076,0.00025763,7]
[366718938,1750415745226,340.45111,0.00025763,7]
[366718939,1750415745311,340.45111,0.0002578,7]
[366718940,1750415745747,922.567076,0.00025489,7]
[366718941,1750415745857,922.567076,0.0002549,7]
[366718942,1750415745972,922.567076,0.00025753,7]
[366718943,1750415746025,340.45111,0.00025562,7]
[366718944,1750415746064,922.567076,0.00025753,7]
[366718945,1750415746114,340.45111,0.00025753,7]
[366718946,1750415746153,922.567076,0.00025763,7]
[366718947,1750415746207,340.45111,0.00025763,7]
[366718948,1750415746268,340.45111,0.0002578,7]
[366718949,1750415749588,151.0,0.00025489,7]
[366718950,1750415749640,151.0,0.0002549,7]
[366718951,1750415749731,151.0,0.00025753,7]
[366718952,1750415750021,151.0,0.00025753,7]
[366718953,1750415750380,151.0,0.00025763,7]
[366718954,1750415750911,151.0,0.00025489,7]
[366718955,1750415751074,151.0,0.0002549,7]
[366718956,1750415751177,151.0,0.00025753,7]
[366718957,1750415751256,198.645338,0.00025753,7]
[366718958,1750415752251,151.0,0.00025489,7]
[366718959,1750415752717,204.0,0.00022801,2]
[366718960,1750415754984,151.856014,0.00025598,7]
[366718961,1750415755077,151.856014,0.00025753,7]
[366718962,1750415755103,151.0,0.00025562,7]
[366718963,1750415755145,151.856014,0.00025753,7]
[366718964,1750415755179,151.0,0.00025607,7]
[366718965,1750415755219,151.856014,0.00025763,7]
[366718966,1750415755270,151.0,0.00025753,7]
[366718967,1750415755341,151.0,0.00025753,7]
[366718968,1750415755385,230.770792,0.00025763,7]
[366718969,1750415755769,151.856014,0.00025598,7]
[366718970,1750415756036,151.856014,0.00025753,7]
[366718971,1750415756093,151.856014,0.00025753,7]
[366718972,1750415756148,151.856014,0.00025763,7]
[366718973,1750415756264,151.0,0.00025607,7]
[366718974,1750415756355,151.0,0.00025753,7]
[366718975,1750415756397,151.0,0.00025753,7]
[366718976,1750415756444,151.0,0.00025763,7]
[366718977,1750415771784,206.0,0.00021801,2]
[366718978,1750415783929,3664.16761363,0.0002,8]
[366719060,1750416003868,9363.19864987,0.00018461,2]
[366719061,1750416004182,5000.0,0.00018461,2]
[366719064,1750416186410,490.0,0.000258,7]
[366719065,1750416188195,490.0,0.000258,7]
[366719070,1750416321315,2000.0,0.000258,7]
[366719071,1750416330076,2000.0,0.000258,7]
[366719072,1750416331162,2000.0,0.000258,7]
[366719073,1750416332694,2000.0,0.000258,7]
[366719075,1750416343332,2000.0,0.000258,7]
[366719076,1750416348057,650.0,0.00023102,2]
[366719077,1750416359596,200.0,0.000258,7]
[366719080,1750416492426,206.0,0.00022348,2]
[366719109,1750416631698,-1000.0,0.00024454,2]
[366719110,1750416631708,-1453.4,0.00024482,2]
[366719111,1750416631718,-168.0,0.00024516,2]
[366719112,1750416631727,-666.0,0.00024524,2]
[366719113,1750416631737,-150.0,0.00024561,2]
[366719114,1750416631746,-150.4,0.00024574,2]
[366719115,1750416631756,-125.4150029,0.00024756,2]
[366719126,1750416632119,-74.5849971,0.00024756,2]
[366719127,1750416632130,-208.49,0.00024867,2]
[366719128,1750416632140,-206.0,0.00025037,6]
[366719129,1750416632150,-300.0,0.00025081,2]
[366719130,1750416632160,-250.0,0.00025081,2]
[366719131,1750416632170,-89.94773022,0.00025081,4]
[366719132,1750416632198,-510.05226978,0.00025081,4]
[366719134,1750416632208,-92.96353368,0.00025347,2]
[366719148,1750416637588,-167.27470089,0.00025347,2]